bitfinex/quotes_ETHUSD_20220213
["timestamp","ask_amount","ask_price","bid_price","bid_amount"]
[1644750823909,0.05605287,2931.0,2930.8,8.80392888]
[1644750824126,0.05605287,2931.0,2930.9,3.70220504]
[1644750824316,0.00993486,2931.6,2931.1,0.85276]
[1644750824531,0.00993486,2931.6,2931.2,3.40982054]
[1644750824720,0.00993486,2931.6,2931.2,3.58191183]
[1644750824912,0.5,2931.4,2931.3,1.0]
[1644750825112,0.5,2931.4,2931.3,4.34289398]
[1644750825315,0.5,2931.4,2931.3,4.35283124]
[1644750825749,0.5,2931.4,2931.3,7.05854929]
[1644750826114,0.00993593,2931.6,2931.3,7.35854929]
[1644750826377,0.5,2931.8,2931.3,7.34861203]
[1644750826575,0.00993583,2931.6,2931.3,4.64289398]
[1644750827183,0.5,2931.5,2931.3,4.64289398]
[1644750827565,0.5,2931.5,2931.4,0.1208]
[1644750828067,0.5,2931.5,2931.4,3.1855627]
[1644750828272,0.5,2931.5,2931.4,4.1855627]
[1644750828667,0.5,2931.5,2931.4,1.1208]
[1644750828868,0.5,2931.5,2931.4,3.1717484]
[1644750829273,0.5,2931.5,2931.4,4.1717484]
[1644750831188,0.5,2931.5,2931.4,1.1208]
[1644750831320,0.5,2931.5,2931.4,0.1208]
[1644750832319,0.56802704,2931.5,2931.4,0.1208]
[1644750836067,0.20024155,2931.3,2931.1,0.3]
[1644750837286,0.20024155,2931.3,2931.1,0.30993747]
[1644750838317,0.20024155,2931.3,2931.1,0.3]
[1644750838516,0.20024155,2931.3,2931.1,0.30994494]
[1644750839520,0.20024155,2931.3,2930.9,1.64259129]
[1644750839732,0.20024155,2931.3,2931.1,0.00994494]
[1644750839962,0.20024155,2931.3,2931.1,0.00848624]
[1644750840729,0.20024155,2931.3,2930.9,1.64259129]
[1644750842074,0.20024155,2931.3,2931.0,0.00423174]
[1644750842262,0.03100251,2931.2,2931.0,0.00423174]
[1644750843067,0.03100251,2931.2,2930.9,1.64259129]
[1644750843314,0.03100251,2931.2,2931.0,0.01052455]
[1644750843674,1.45141855,2931.1,2931.0,0.01052455]
[1644750844271,1.45141855,2931.1,2930.9,0.34259129]
[1644750844468,1.45141855,2931.1,2930.9,0.35311591]
[1644750844673,1.95141855,2931.1,2930.9,0.18102462]
[1644750844878,2.47372992,2931.0,2930.9,0.18102462]
[1644750845118,1.45141855,2931.0,2930.9,0.18102462]
[1644750845514,1.45141855,2931.0,2930.9,0.1705]
[1644750846835,1.45141855,2931.0,2930.8,0.1848386]
[1644750847017,1.45141855,2931.0,2930.8,0.0143386]
[1644750847918,1.45141855,2931.0,2930.8,0.0038342]
[1644750848124,1.45141855,2931.0,2930.8,0.86732867]
[1644750848318,1.45141855,2931.0,2930.8,0.31433867]
[1644750848718,1.45141855,2931.0,2930.8,0.01433867]
[1644750849177,1.95141855,2931.0,2930.8,0.0038342]
[1644750849461,1.45141855,2930.9,2930.8,0.01433511]
[1644750849658,1.45141855,2931.0,2930.8,0.01433511]
[1644750850268,1.45141855,2931.0,2930.8,0.0038342]
[1644750850463,1.45141855,2931.0,2930.8,0.01433511]
[1644750850667,1.95141855,2931.0,2930.8,0.01433511]
[1644750850869,1.45141855,2930.9,2930.8,0.01433511]
[1644750851465,1.45141855,2930.9,2930.8,0.0038342]
[1644750852465,1.48234311,2930.9,2930.8,0.0038342]
[1644750856792,0.03092456,2930.9,2930.8,0.0038342]
[1644750856982,1.48240677,2930.9,2930.8,0.0038342]
[1644750864674,1.48137539,2930.9,2930.8,0.0038342]
[1644750869921,1.48137539,2930.9,2930.7,0.01050583]
[1644750870156,1.45148221,2930.8,2930.7,0.01050583]
[1644750870324,1.45148221,2930.8,2930.7,0.01434003]
[1644750870720,1.45148221,2930.8,2930.7,0.0038342]
[1644750877430,1.48229483,2930.8,2930.7,0.0038342]
[1644750880676,1.98229483,2930.8,2930.7,0.0038342]
[1644750884221,4.35,2930.7,2930.4,1.41514018]
[1644750884422,1.45148221,2930.6,2930.4,0.3]
[1644750884623,0.53081262,2930.8,2930.2,1.04203022]
[1644750884624,1.45148221,2930.5,2930.2,1.04203022]
[1644750884835,1.45148221,2930.4,2930.2,0.04203022]
[1644750885026,1.45148221,2930.3,2930.0,1.73920549]
[1644750885225,0.53081262,2930.8,2930.0,1.73920549]
[1644750885425,1.01429509,2930.1,2930.0,1.73920549]
[1644750886125,1.01429509,2930.1,2930.0,2.03920549]
[1644750886376,1.01429509,2930.1,2930.0,2.33920549]
[1644750886567,0.5,2930.2,2930.0,2.33920549]
[1644750887262,0.09718847,2930.8,2930.0,5.94898759]
[1644750887463,0.09718847,2930.8,2930.1,3.04200404]
[1644750887663,2.63749757,2930.7,2930.1,4.04200404]
[1644750887867,1.45158351,2930.6,2930.1,4.04200404]
[1644750888488,1.45158351,2930.6,2930.1,1.0]
[1644750889074,1.45158351,2930.6,2930.2,0.01051443]
[1644750889485,0.5,2930.4,2930.2,0.01051443]
[1644750889879,0.5,2930.4,2930.1,4.05110539]
[1644750890172,0.5,2930.4,2930.2,0.01049671]
[1644750891123,0.5,2930.4,2930.1,1.0]
[1644750891317,0.5,2930.4,2930.2,0.01049671]
[1644750892519,0.5,2930.4,2930.2,0.01022495]
[1644750893519,0.5,2930.4,2930.1,1.0]
[1644750893862,0.5,2930.4,2930.2,0.01023726]
[1644750894763,0.5,2930.4,2930.1,1.0]
[1644750894969,0.5,2930.4,2930.2,0.01023726]
[1644750895167,0.03294482,2930.5,2930.2,0.01023726]
[1644750895367,1.45165436,2930.4,2930.2,0.01023726]
[1644750895967,1.45165436,2930.4,2930.1,1.0]
[1644750896169,1.45165436,2930.4,2930.2,0.01050901]
[1644750896770,1.95165436,2930.4,2930.2,0.01050901]
[1644750896967,1.45165436,2930.3,2930.2,0.01050901]
[1644750897173,1.45165436,2930.3,2930.1,1.0]
[1644750897381,1.48454718,2930.3,2930.2,0.01051571]
[1644750897699,0.03289282,2930.3,2930.2,0.01051571]
[1644750898428,0.03289282,2930.3,2930.2,3.0990909]
[1644750898813,0.03289282,2930.3,2930.2,1.3]
[1644750899016,1.48460823,2930.3,2930.2,1.3]
[1644750899217,0.03289282,2930.3,2930.2,0.3]
[1644750899626,0.03289282,2930.3,2930.2,0.30382554]
[1644750901021,1.48461694,2930.3,2930.2,0.30382554]
[1644750901467,1.48462069,2930.3,2930.2,0.30382554]
[1644750901782,0.03289282,2930.3,2930.2,0.30382554]
[1644750902666,1.48461065,2930.3,2930.2,0.30382554]
[1644750902867,0.03289282,2930.3,2930.2,0.30382554]
[1644750904074,0.03289282,2930.3,2930.2,0.00382554]
[1644750904277,1.4846325,2930.3,2930.2,0.00382554]
[1644750905119,0.03289282,2930.3,2930.2,0.00382554]
[1644750905721,0.03138652,2930.3,2930.2,0.00382554]
[1644750907123,1.4830998,2930.3,2930.2,0.00382554]
[1644750907334,0.03138652,2930.3,2930.2,3.07668773]
[1644750907727,0.03138652,2930.3,2930.2,4.37668773]
[1644750908223,0.06634582,2930.4,2930.3,0.4706]
[1644750908224,0.02696106,2930.4,2930.3,0.4706]
[1644750908428,0.02696106,2930.4,2930.3,5.64113178]
[1644750909078,0.02696106,2930.4,2930.3,6.5629348]
[1644750909278,0.02696106,2930.4,2930.3,7.48473782]
[1644750911471,0.02696106,2930.4,2930.3,7.31413782]
[1644750912272,0.05923588,2930.4,2930.3,7.31413782]
[1644750912715,0.05923588,2930.4,2930.3,7.48473782]
[1644750912919,0.05923588,2930.4,2930.3,4.42277332]
[1644750914620,0.05923588,2930.4,2930.3,4.25217332]
[1644750916381,0.05923588,2930.4,2930.3,3.14743158]
[1644750916574,0.05923588,2930.4,2930.3,2.14743158]
[1644750916871,1.51092642,2930.4,2930.3,2.14743158]
[1644750917474,1.51092642,2930.4,2930.3,1.84743158]
[1644750922291,1.51092642,2930.4,2930.3,2.14743158]
[1644750924068,1.51092642,2930.4,2930.3,3.14743158]
[1644750925575,1.51092642,2930.4,2930.3,3.65035784]
[1644750928036,0.05923588,2930.4,2930.3,3.82095784]
[1644750928221,0.03227482,2930.4,2930.3,4.12095784]
[1644750929430,0.0310191,2930.4,2930.3,4.12095784]
[1644750930550,1.08695528,2931.1,2930.3,4.12095784]
[1644750930735,1.45161277,2931.0,2930.3,4.12095784]
[1644750930933,1.45161277,2931.0,2930.3,2.2773518]
[1644750931140,0.5,2930.5,2930.3,2.2773518]
[1644750931381,0.5,2930.5,2930.3,1.2773518]
[1644750932276,0.5,2930.5,2930.3,1.28785146]
[1644750932679,0.02832481,2930.4,2930.3,1.31786317]
[1644750933277,0.02832481,2930.4,2930.3,1.30736351]
[1644750936127,0.02832481,2930.4,2930.3,2.22916653]
[1644750936344,0.02832481,2930.4,2930.3,4.00400955]
[1644750936835,0.02832481,2930.4,2930.3,5.00400955]
[1644750939368,0.02832481,2930.4,2930.3,4.83340955]
[1644750942919,0.17398927,2930.5,2930.4,4.35]
[1644750943123,0.01449585,2931.2,2930.5,1.44986]
[1644750943317,0.01449585,2931.2,2930.6,2.30565]
[1644750943318,1.45141299,2931.1,2930.6,2.30565]
[1644750943516,1.45141299,2931.1,2930.8,0.92180302]
[1644750943717,1.45141299,2931.1,2930.9,1.22180302]
[1644750944158,1.45141299,2931.1,2930.9,1.81879302]
[1644750944320,0.01030123,2931.2,2931.0,0.3]
[1644750944520,1.45149262,2931.1,2931.0,0.3]
[1644750944720,1.45149262,2931.1,2930.9,2.52180302]
[1644750945525,0.01030123,2931.2,2930.9,2.52180302]
[1644750945724,1.45149262,2931.1,2930.9,2.52180302]
[1644750946470,1.45149262,2931.1,2930.9,1.52180302]
[1644750946696,0.01030123,2931.2,2931.0,1.0]
[1644750946887,1.45156745,2931.1,2930.9,1.22180302]
[1644750947471,0.07060536,2931.0,2930.9,1.24422602]
[1644750947872,1.52217281,2931.0,2930.9,0.94422602]
[1644750948078,1.52217281,2931.0,2930.8,0.31761981]
[1644750948270,1.45156745,2930.9,2930.8,0.31761981]
[1644750948741,1.45156745,2930.9,2930.5,0.00999817]
[1644750948872,1.45156745,2930.9,2930.7,0.31761981]
[1644750949873,1.45156745,2930.9,2930.7,1.17064981]
[1644750950126,1.45156745,2930.9,2930.7,1.77064981]
[1644750952343,1.45156745,2930.9,2930.7,2.77064981]
[1644750952524,1.48963403,2930.9,2930.8,0.10540087]
[1644750952726,1.48963403,2930.9,2930.8,1.40540087]
[1644750952928,1.48963403,2930.9,2930.8,0.40540087]
[1644750953127,1.48963403,2930.9,2930.8,1.40540087]
[1644750953625,1.48963403,2930.9,2930.8,1.10540087]
[1644750954267,1.48963403,2930.9,2930.8,0.42302068]
[1644750959626,1.48963403,2930.9,2930.8,0.72302068]
[1644750960022,1.48963403,2930.9,2930.8,1.02302068]
[1644750966461,1.48963403,2930.9,2930.8,0.72302068]
[1644750969279,1.48963403,2930.9,2930.8,1.72302068]
[1644750969500,1.48963403,2930.9,2930.8,0.72302068]
[1644750969683,1.48963403,2930.9,2930.8,1.72302068]
[1644750969911,1.48963403,2930.9,2930.8,0.72302068]
[1644750970187,1.48845356,2930.9,2930.8,1.72302068]
[1644750970490,1.48845356,2930.9,2930.8,0.72302068]
[1644750970685,1.48845356,2930.9,2930.8,1.72302068]
[1644750971889,1.48845356,2930.9,2930.8,0.72302068]
[1644750972084,1.48845356,2930.9,2930.8,1.72302068]
[1644750972285,1.48845356,2930.9,2930.8,0.72302068]
[1644750972490,1.48845356,2930.9,2930.8,1.72302068]
[1644750972926,1.48845356,2930.9,2930.8,0.72302068]
[1644750973127,1.48845356,2930.9,2930.8,1.72302068]
[1644750973327,1.48845356,2930.9,2930.8,0.72302068]
[1644750973533,1.48845356,2930.9,2930.8,1.72302068]
[1644750973927,1.48845356,2930.9,2930.8,0.72302068]
[1644750974127,1.48845356,2930.9,2930.8,1.72302068]
[1644750974335,1.48845356,2930.9,2930.8,0.72302068]
[1644750983630,1.48845356,2930.9,2930.8,1.02302068]
[1644750983891,1.48845356,2930.9,2930.8,4.13986111]
[1644750984273,1.48845356,2930.9,2930.8,5.13986111]
[1644750984677,1.48845356,2930.9,2930.8,5.99274111]
[1644750984896,1.48845356,2930.9,2930.8,6.1648324]
[1644750985079,1.48845356,2930.9,2930.8,6.3353324]
[1644750985890,0.03806658,2930.9,2930.8,6.3353324]
[1644750987082,0.03806658,2930.9,2930.8,6.35789885]
[1644750987281,0.00400098,2931.6,2931.4,1.04188063]
[1644750987483,0.50625203,2931.3,2931.2,1.06557067]
[1644750987729,0.50625203,2931.3,2931.2,1.66557067]
[1644750987936,0.50625203,2931.3,2931.2,2.98319048]
[1644750988329,0.50625203,2931.3,2931.2,5.99515585]
[1644750988836,0.00991575,2931.4,2931.3,3.25]
[1644750989134,0.00400098,2931.9,2931.4,3.0]
[1644750989330,1.15061747,2932.1,2931.4,3.0]
[1644750989331,0.00400098,2931.7,2931.5,4.33531024]
[1644750989531,0.00400098,2932.0,2931.7,1.05677026]
[1644750989733,0.00400098,2932.0,2931.8,3.59386883]
[1644750990134,0.00400098,2932.0,2931.9,1.0]
[1644750990334,1.45112699,2932.0,2931.9,4.19375]
[1644750990535,1.95112699,2932.0,2931.9,4.19375]
[1644750991141,1.45112699,2932.0,2931.9,4.19375]
[1644750991392,1.95112699,2932.0,2931.9,4.19375]
[1644750993280,1.95112699,2932.0,2931.9,4.51136981]
[1644750994482,1.45112699,2932.0,2931.9,4.51136981]
[1644750994694,1.95112699,2932.0,2931.9,4.51136981]
[1644750997568,1.9961095,2932.0,2931.9,4.53754333]
[1644750998332,0.54498251,2932.0,2931.9,4.53754333]
[1644751002283,0.54498251,2932.0,2931.9,4.55063009]
[1644751003126,0.54498251,2932.0,2931.9,1.35688009]
[1644751003425,0.54498251,2932.0,2931.9,3.45411954]
[1644751003628,0.54498251,2932.0,2931.9,4.45411954]
[1644751007375,0.54498251,2932.0,2931.9,4.43188506]
[1644751007980,0.54498251,2932.0,2931.9,1.39560665]
[1644751008274,0.54498251,2932.0,2931.9,0.39560665]
[1644751008475,0.54498251,2932.0,2931.9,1.39560665]
[1644751009179,0.04498251,2932.0,2931.9,0.39560665]
[1644751009378,0.04498251,2932.0,2931.9,1.39560665]
[1644751009584,0.04498251,2932.0,2931.9,0.39560665]
[1644751009795,0.04498251,2932.0,2931.9,1.39560665]
[1644751010229,0.04498251,2932.0,2931.9,0.39560665]
[1644751010443,0.04498251,2932.0,2931.9,2.49692414]
[1644751010629,0.04898349,2932.0,2931.9,3.34950414]
[1644751010830,0.04898349,2932.0,2931.9,2.24818665]
[1644751011434,0.04898349,2932.0,2931.9,1.39560665]
[1644751011653,0.04810231,2932.0,2931.9,1.39560665]
[1644751012042,0.04810231,2932.0,2931.9,2.24816665]
[1644751012233,0.04810231,2932.0,2931.9,1.24816665]
[1644751012433,0.04810231,2932.0,2931.9,2.20944009]
[1644751012636,0.04410133,2932.0,2931.9,2.20944009]
[1644751013045,0.04810231,2932.0,2931.9,2.20944009]
[1644751013638,0.5,2932.1,2932.0,1.69110318]
[1644751013890,0.511061,2932.1,2932.0,2.69110318]
[1644751014283,0.511061,2932.1,2932.0,3.00872299]
[1644751014782,0.5,2932.1,2932.0,3.00872299]
[1644751016686,1.95100977,2932.1,2932.0,3.00872299]
[1644751016887,1.95100977,2932.1,2932.0,3.52409618]
[1644751017306,0.55630604,2932.1,2932.0,3.52409618]
[1644751017525,0.55630604,2932.1,2932.0,3.00872299]
[1644751017725,2.0073226,2932.1,2932.0,3.00872299]
[1644751018529,0.55630604,2932.1,2932.0,3.00872299]
[1644751018729,2.00731399,2932.1,2932.0,3.00872299]
[1644751020544,2.00731399,2932.1,2932.0,3.51698512]
[1644751020937,0.55630604,2932.1,2932.0,3.51698512]
[1644751024792,0.55630604,2932.1,2932.0,3.68748512]
[1644751025232,0.55630604,2932.1,2932.0,3.51698512]
[1644751025436,2.00724733,2932.1,2932.0,3.51698512]
[1644751025934,0.55630604,2932.1,2932.0,3.51698512]
[1644751027732,0.55630604,2932.1,2932.0,4.5975192]
[1644751028365,0.55630604,2932.1,2932.0,4.7680192]
[1644751028535,0.55630604,2932.1,2932.0,4.94011049]
[1644751029580,0.55630604,2932.1,2932.0,4.76961049]
[1644751029783,2.00718147,2932.1,2932.0,4.76961049]
[1644751030592,2.00718147,2932.1,2932.0,3.68907641]
[1644751031384,2.00721681,2932.1,2932.0,3.68907641]
[1644751031989,1.92570863,2932.1,2932.0,3.68907641]
[1644751032187,0.00399826,2932.6,2932.2,4.2]
[1644751032403,0.00399826,2932.6,2932.4,0.85228]
[1644751032699,4.15061747,2933.2,2932.5,2.6]
[1644751032828,0.65061747,2933.3,2932.6,1.31761981]
[1644751033026,0.65061747,2933.3,2932.7,1.70446]
[1644751033230,1.1625,2933.4,2933.2,1.15214906]
[1644751033231,1.81311747,2933.4,2933.2,1.15214906]
[1644751033425,1.81311747,2933.4,2932.8,1.0]
[1644751033426,0.39514302,2932.9,2932.8,1.0]
[1644751033627,0.39514302,2932.9,2932.7,3.70898]
[1644751033928,0.65061747,2933.5,2932.9,3.4]
[1644751034139,3.3466,2934.2,2933.0,3.05]
[1644751034140,1.30123494,2934.2,2933.0,3.05]
[1644751034331,0.8523,2934.4,2933.0,7.29835988]
[1644751034536,0.8523,2934.4,2933.1,1.0]
[1644751034537,4.3523,2934.4,2933.1,1.0]
[1644751034728,4.3523,2934.4,2933.6,0.38724652]
[1644751034729,3.5,2934.4,2933.6,0.38724652]
[1644751034926,3.5,2934.4,2933.7,0.85206]
[1644751035150,4.80123494,2934.4,2933.7,1.15206]
[1644751035329,1.30123494,2934.4,2933.7,1.15206]
[1644751035943,1.30123494,2934.4,2933.7,0.89644]
[1644751036130,1.30123494,2934.6,2933.7,0.89644]
[1644751036594,3.6703,2934.7,2933.7,0.3]
[1644751036595,1.47153494,2934.5,2933.7,0.3]
[1644751036777,1.19275863,2934.3,2933.7,0.3]
[1644751037011,1.19275863,2934.3,2933.6,0.3]
[1644751037193,1.19275863,2934.3,2933.5,1.6]
[1644751037786,1.18170123,2934.3,2933.5,1.6]
[1644751037984,0.01105781,2934.0,2933.5,1.6]
[1644751038183,0.01105781,2934.0,2933.9,0.31761981]
[1644751038984,1.18170123,2934.3,2933.9,0.31761981]
[1644751039219,0.01105773,2934.1,2933.9,0.31761981]
[1644751040276,1.18170123,2934.3,2933.9,0.31761981]
[1644751040429,0.01105765,2934.1,2933.9,0.31761981]
[1644751041139,3.31373161,2934.1,2933.9,0.31761981]
[1644751041339,3.30267396,2934.1,2933.9,0.31761981]
[1644751041530,3.31373161,2934.1,2933.9,0.31761981]
[1644751041927,5.0,2934.0,2933.9,0.31761981]
[1644751042127,9.86641427,2934.0,2933.9,0.39283972]
[1644751042329,9.86641427,2934.0,2932.9,0.1703]
[1644751042330,4.35,2933.9,2932.9,0.1703]
[1644751042529,3.90308988,2933.8,2932.7,0.1703]
[1644751042748,3.90308988,2933.8,2932.6,0.01106355]
[1644751042931,3.90308988,2933.8,2932.7,0.76698]
[1644751043228,0.5,2933.0,2932.7,0.76698]
[1644751043487,0.5,2933.0,2932.8,0.3]
[1644751043628,0.5,2933.0,2932.9,0.1703]
[1644751043894,3.90308988,2933.8,2932.9,0.1703]
[1644751043895,0.5,2933.1,2932.9,0.4703]
[1644751044077,0.01085204,2933.0,2932.9,0.4703]
[1644751044876,0.5,2933.1,2932.9,0.4703]
[1644751045286,0.51085196,2933.1,2932.9,0.4703]
[1644751046083,0.5,2933.1,2932.9,0.4703]
[1644751046283,0.98240097,2933.3,2932.9,0.4703]
[1644751046485,0.01085189,2933.1,2932.9,0.4703]
[1644751046882,0.51085189,2933.1,2932.9,0.4703]
[1644751047085,0.02465727,2933.0,2932.9,0.518296]
[1644751048630,0.02865476,2933.0,2932.9,0.518296]
[1644751049959,0.02865476,2933.0,2932.9,0.347996]
[1644751052384,0.02465727,2933.0,2932.9,0.347996]
[1644751052585,0.02865476,2933.0,2932.9,0.347996]
[1644751053388,0.02465727,2933.0,2932.9,1.347996]
[1644751053584,0.02465727,2933.0,2932.9,0.347996]
[1644751053785,0.02465727,2933.0,2932.9,2.200246]
[1644751053985,0.02465727,2933.0,2932.9,1.200246]
[1644751054184,0.02465727,2933.0,2932.9,2.200246]
[1644751054601,0.02865476,2933.0,2932.9,2.200246]
[1644751054785,0.02865476,2933.0,2932.9,1.347996]
[1644751055228,0.02865476,2933.0,2932.9,0.347996]
[1644751055428,0.02865476,2933.0,2932.9,1.347996]
[1644751055832,0.02865476,2933.0,2932.9,0.347996]
[1644751056036,0.02465727,2933.0,2932.9,1.347996]
[1644751056430,0.02465727,2933.0,2932.9,0.347996]
[1644751056641,0.02865476,2933.0,2932.9,1.347996]
[1644751057237,0.02865476,2933.0,2932.9,0.347996]
[1644751057431,0.02865476,2933.0,2932.9,2.200246]
[1644751057643,0.02865476,2933.0,2932.9,1.200246]
[1644751057830,0.02865476,2933.0,2932.9,2.200246]
[1644751059676,0.02465727,2933.0,2932.9,2.200246]
[1644751060076,0.02865476,2933.0,2932.9,2.200246]
[1644751060678,0.02865476,2933.0,2932.9,2.37233729]
[1644751060951,0.02865476,2933.0,2932.9,2.54263729]
[1644751061080,0.02465727,2933.0,2932.9,2.54263729]
[1644751061289,0.02865476,2933.0,2932.9,2.54263729]
[1644751061882,0.02865476,2933.0,2932.9,2.37233729]
[1644751062285,0.02865476,2933.0,2932.9,2.38441248]
[1644751062725,0.51048591,2933.1,2933.0,3.85]
[1644751062927,1.1911,2933.9,2933.0,4.85]
[1644751063139,1.45431764,2933.8,2933.3,0.59647]
[1644751063328,0.04193673,2933.6,2933.3,0.59647]
[1644751063530,0.04193673,2933.6,2933.3,1.89647]
[1644751063729,0.04193673,2933.6,2933.4,0.3]
[1644751064235,0.5,2933.9,2933.4,0.3]
[1644751064528,0.01048512,2933.6,2933.4,0.3]
[1644751064727,0.01048512,2933.6,2933.4,2.00417]
[1644751064927,0.01048512,2933.6,2933.4,3.00417]
[1644751065340,0.5,2933.7,2933.4,3.00417]
[1644751065538,0.01048512,2933.6,2933.4,3.00417]
[1644751065731,0.01048512,2933.6,2933.4,3.00323961]
[1644751066584,0.5,2933.7,2933.4,3.00323961]
[1644751066783,1.46017351,2933.6,2933.4,1.29906961]
[1644751066981,1.45032545,2933.5,2933.4,1.29906961]
[1644751067178,1.45032545,2933.5,2933.4,0.29906961]
[1644751067379,1.45032545,2933.5,2933.3,0.3]
[1644751067618,1.48442379,2933.5,2933.3,0.3]
[1644751067783,0.03409834,2933.5,2933.2,1.7703]
[1644751067982,0.04394654,2933.5,2933.2,1.7703]
[1644751068184,0.04394654,2933.5,2933.2,0.7703]
[1644751068785,0.04394654,2933.5,2933.2,0.4703]
[1644751068990,0.03409834,2933.5,2933.2,0.7703]
[1644751069197,6.300421,2933.4,2932.9,0.25]
[1644751069396,4.950421,2933.3,2932.6,0.00988891]
[1644751069591,0.5,2932.7,2932.6,0.00988891]
[1644751070239,0.5,2932.7,2932.2,3.3238]
[1644751070240,1.15000794,2932.7,2932.2,3.3238]
[1644751070551,0.00988658,2932.8,2932.5,0.60658774]
[1644751071153,0.00988658,2932.8,2932.6,0.3]
[1644751071334,0.00399796,2933.2,2932.6,0.3]
[1644751071545,0.5,2932.7,2932.6,0.6]
[1644751071740,0.5,2932.7,2932.6,1.45243]
[1644751072759,0.5,2932.7,2932.6,0.3]
[1644751072760,1.95068176,2932.7,2932.6,0.3]
[1644751072937,1.95068176,2932.7,2932.5,0.00991075]
[1644751073140,0.5,2932.7,2932.5,0.00991075]
[1644751073887,0.5,2932.7,2932.1,1.1703]
[1644751074076,0.5,2932.7,2932.5,0.00991082]
[1644751074674,1.15709878,2932.6,2932.5,0.00991082]
[1644751074874,1.15709878,2932.6,2932.0,1.69110318]
[1644751074875,2.60783459,2932.6,2932.0,1.69110318]
[1644751075079,1.15709878,2932.6,2932.0,1.69110318]
[1644751075298,1.45074258,2932.5,2932.0,1.69110318]
[1644751075491,0.5,2932.1,2932.0,1.69110318]
[1644751076080,0.5,2932.1,2932.0,1.99110318]
[1644751077489,0.5,2932.1,2932.0,2.16160318]
[1644751079033,0.03374803,2932.6,2932.0,2.16160318]
[1644751079231,0.03374803,2932.6,2932.2,0.85245]
[1644751079437,1.45073298,2932.5,2932.2,0.85245]
[1644751079706,1.45073298,2932.5,2932.2,1.15245]
[1644751080032,1.45073298,2932.5,2932.2,1.1623652]
[1644751080434,0.5,2932.4,2932.2,1.1623652]
[1644751086434,0.5,2932.4,2932.2,1.15245]
[1644751087142,0.5,2932.4,2932.2,0.3]
[1644751087341,0.52310399,2932.4,2932.3,0.0603003]
[1644751092090,0.55197797,2932.4,2932.1,1.65994349]
[1644751093147,0.55197797,2932.4,2932.1,2.85341349]
[1644751093939,0.55197797,2932.4,2932.2,0.76881129]
[1644751094136,0.55197797,2932.4,2932.2,2.47362129]
[1644751094335,0.55197797,2932.4,2932.2,2.77362129]
[1644751094548,0.55197797,2932.4,2932.2,2.60153]
[1644751094743,0.55197797,2932.4,2932.3,1.0]
[1644751097184,0.55197797,2932.4,2932.3,1.05998922]
[1644751100234,0.55197797,2932.4,2932.3,0.05998922]
[1644751101134,0.05197797,2932.4,2932.3,0.05998922]
[1644751102133,0.05197797,2932.4,2932.2,1.1815502]
[1644751102331,0.05197797,2932.4,2932.2,0.1815502]
[1644751102940,0.05197797,2932.4,2932.1,1.66043748]
[1644751103134,0.05197797,2932.4,2932.2,0.01105028]
[1644751104089,0.05197797,2932.4,2932.1,0.36043748]
[1644751104281,0.05197797,2932.4,2932.1,1.36043748]
[1644751104483,0.05197797,2932.4,2932.2,0.01105559]
[1644751105294,0.05197797,2932.4,2932.2,0.3]
[1644751105484,0.05197797,2932.4,2932.2,0.31105559]
[1644751106484,0.05197797,2932.4,2932.2,0.3]
[1644751106683,0.05197797,2932.4,2932.2,0.31105559]
[1644751107083,0.05197797,2932.4,2932.3,0.06008831]
[1644751107845,0.17449777,2933.1,2932.3,1.76482831]
[1644751108041,0.17449777,2933.1,2932.4,2.89807]
[1644751108042,0.01105309,2932.8,2932.4,2.89807]
[1644751108245,0.01105309,2932.8,2932.5,0.3]
[1644751108440,0.01105309,2932.8,2932.5,1.3]
[1644751108643,1.45056631,2932.7,2932.5,1.3]
[1644751109042,0.00399777,2933.3,2932.6,0.85231]
[1644751109247,0.01105362,2932.8,2932.6,0.85231]
[1644751109443,1.4505454,2932.7,2932.6,0.85231]
[1644751109864,0.01105362,2932.8,2932.6,0.85231]
[1644751110347,1.45055767,2932.7,2932.6,0.86336494]
[1644751110763,1.95055767,2932.7,2932.6,0.86336494]
[1644751110943,0.5,2932.7,2932.6,0.86336494]
[1644751111392,0.5,2932.7,2932.6,0.85231]
[1644751111783,0.01105373,2932.8,2932.6,0.85231]
[1644751112381,0.01105373,2932.8,2932.7,0.04817182]
[1644751112581,1.45049963,2932.8,2932.7,0.04817182]
[1644751112849,1.46156099,2932.8,2932.7,0.04817182]
[1644751113382,1.46156099,2932.8,2932.7,0.90050182]
[1644751113782,1.45050716,2932.8,2932.7,1.20050182]
[1644751117633,1.45050716,2932.8,2932.7,1.21475977]
[1644751117840,1.51000909,2932.8,2932.7,1.21475977]
[1644751118890,1.51000909,2932.8,2932.7,0.36242977]
[1644751119079,1.51000909,2932.8,2932.7,0.06242977]
[1644751119701,0.05950193,2932.8,2932.7,0.06242977]
[1644751120295,0.05950193,2932.8,2932.7,0.23282977]
[1644751122645,0.00986483,2932.9,2932.7,0.18465795]
[1644751122836,0.00986483,2932.9,2932.7,0.01425795]
[1644751123558,0.55950193,2933.0,2932.7,0.01425795]
[1644751123736,0.00986476,2932.9,2932.7,0.01425795]
[1644751124041,0.50986476,2932.9,2932.7,0.01425795]
[1644751124636,0.5,2932.9,2932.7,0.01425795]
[1644751124834,0.50986476,2932.9,2932.7,0.01425795]
[1644751125738,0.5,2932.9,2932.7,0.01425795]
[1644751125939,0.50993555,2932.9,2932.7,0.01425795]
[1644751127007,0.5,2932.9,2932.7,0.01425795]
[1644751127228,0.50993555,2932.9,2932.7,0.01425795]
[1644751127596,0.56951534,2932.9,2932.6,1.47969641]
[1644751128329,0.55957979,2932.9,2932.6,1.46975953]
[1644751128492,0.56951541,2932.9,2932.6,1.47969631]
[1644751129393,0.05957979,2932.9,2932.6,0.86975953]
[1644751129589,0.06837873,2932.9,2932.6,0.8796865]
[1644751129995,0.06837873,2932.9,2932.6,1.0499865]
[1644751130640,0.05845292,2932.9,2932.6,1.04005953]
[1644751130841,0.06837873,2932.9,2932.6,1.1796865]
[1644751131140,1.95057614,2932.8,2932.6,1.1796865]
[1644751131352,1.45057614,2932.7,2932.6,1.1796865]
[1644751131544,0.5,2932.8,2932.6,1.1796865]
[1644751131741,0.5,2932.8,2932.6,1.46975953]
[1644751132143,0.56976318,2932.8,2932.6,1.46975953]
[1644751132946,0.55983739,2932.8,2932.6,1.46975953]
[1644751133445,0.56976474,2932.8,2932.6,0.32739787]
[1644751133645,1.45064783,2932.7,2932.6,0.02739787]
[1644751134285,1.45064783,2932.7,2932.6,0.01746953]
[1644751136988,1.51012564,2932.7,2932.6,0.06555287]
[1644751137642,1.51012564,2932.7,2932.6,0.36555287]